[Event "Titled Tuesday Blitz January 31 Early 2023"]
[White "Ivanova, Karina"]
[Black "Zong, Davis"]
[WhiteFideId "24139750"]
[BlackFideId "30903955"]
[WhiteElo "2085"]
[BlackElo "2151"]
[Result "0-1"]
[Round "08"]
[TimeControl "180+2"]
[Date "2023.01.31"]
[WhiteClock "0:00:41"]
[BlackClock "0:00:31"]

1. d4 {[%clk 0:02:59]}  d5 {[%clk 0:02:59]} 2. Nf3 {[%clk 0:02:57]}  Nf6 {[%clk 0:02:58]} 3. c4 {[%clk 0:02:53]}  c6 {[%clk 0:02:58]} 4. g3 {[%clk 0:02:40]}  e6 {[%clk 0:02:57]} 5. Nbd2 {[%clk 0:02:39]}  Be7 {[%clk 0:02:55]} 6. Bg2 {[%clk 0:02:37]}  O-O {[%clk 0:02:55]} 7. O-O {[%clk 0:02:27]}  b6 {[%clk 0:02:55]} 8. Qc2 {[%clk 0:02:26]}  Bb7 {[%clk 0:02:55]} 9. e4 {[%clk 0:02:26]}  dxe4 {[%clk 0:02:53]} 10. Nxe4 {[%clk 0:02:27]}  Nbd7 {[%clk 0:02:51]} 11. Rd1 {[%clk 0:02:25]}  Qc8 {[%clk 0:02:42]} 12. Bf4 {[%clk 0:02:20]}  Nxe4 {[%clk 0:02:41]} 13. Qxe4 {[%clk 0:02:20]}  c5 {[%clk 0:02:41]} 14. Qe2 {[%clk 0:02:19]}  cxd4 {[%clk 0:02:38]} 15. Nxd4 {[%clk 0:02:15]}  Bxg2 {[%clk 0:02:38]} 16. Kxg2 {[%clk 0:02:16]}  Qb7+ {[%clk 0:02:29]} 17. Qf3 {[%clk 0:02:10]}  Qxf3+ {[%clk 0:02:25]} 18. Nxf3 {[%clk 0:02:10]}  Nf6 {[%clk 0:02:19]} 19. Rac1 {[%clk 0:02:05]}  Rfd8 {[%clk 0:02:16]} 20. b3 {[%clk 0:02:01]}  Ne4 {[%clk 0:02:15]} 21. Bc7 {[%clk 0:01:51]}  Rxd1 {[%clk 0:02:08]} 22. Rxd1 {[%clk 0:01:51]}  Kf8 {[%clk 0:01:56]} 23. Be5 {[%clk 0:01:45]}  f6 {[%clk 0:01:54]} 24. Bd4 {[%clk 0:01:41]}  Rd8 {[%clk 0:01:49]} 25. Re1 {[%clk 0:01:38]}  Nd2 {[%clk 0:01:30]} 26. Be3 {[%clk 0:01:32]}  Nxf3 {[%clk 0:01:25]} 27. Kxf3 {[%clk 0:01:32]}  e5 {[%clk 0:01:22]} 28. Ke4 {[%clk 0:01:20]}  Kf7 {[%clk 0:01:22]} 29. Re2 {[%clk 0:01:20]}  Bb4 {[%clk 0:01:17]} 30. f4 {[%clk 0:01:15]}  exf4 {[%clk 0:01:14]} 31. Bxf4 {[%clk 0:01:15]}  g5 {[%clk 0:01:09]} 32. Be3 {[%clk 0:01:12]}  h5 {[%clk 0:01:04]} 33. h3 {[%clk 0:01:11]}  Re8+ {[%clk 0:00:59]} 34. Kf3 {[%clk 0:01:09]}  Kg6 {[%clk 0:00:57]} 35. g4 {[%clk 0:01:08]}  f5 {[%clk 0:00:54]} 36. gxf5+ {[%clk 0:01:00]}  Kxf5 {[%clk 0:00:55]} 37. Bd4 {[%clk 0:00:58]}  g4+ {[%clk 0:00:51]} 38. hxg4+ {[%clk 0:00:56]}  hxg4+ {[%clk 0:00:51]} 39. Kf2 {[%clk 0:00:56]}  Rxe2+ {[%clk 0:00:49]} 40. Kxe2 {[%clk 0:00:56]}  Ke4 {[%clk 0:00:50]} 41. Bg1 {[%clk 0:00:53]}  g3 {[%clk 0:00:47]} 42. Be3 {[%clk 0:00:52]}  Bc5 {[%clk 0:00:37]} 43. Bxc5 {[%clk 0:00:46]}  bxc5 {[%clk 0:00:38]} 44. a3 {[%clk 0:00:44]}  a5 {[%clk 0:00:38]} 45. Kf1 {[%clk 0:00:39]}  Kd4 {[%clk 0:00:34]} 46. Kg2 {[%clk 0:00:39]}  Kc3 {[%clk 0:00:34]} 47. Kxg3 {[%clk 0:00:40]}  Kxb3 {[%clk 0:00:34]} 48. Kf3 {[%clk 0:00:40]}  Kxa3 {[%clk 0:00:33]} 49. Ke4 {[%clk 0:00:41]}  Kb3 {[%clk 0:00:30]} 50. Kd5 {[%clk 0:00:41]}  Kb4 {[%clk 0:00:31]} 0-1


[Site "https://www.chess.com"]

[Event "Titled Tuesday Blitz January 31 Early 2023"]
[White "Osiecki, Stanislaw"]
[Black "Melikhov, Evgeny V."]
[WhiteFideId "1102990"]
[BlackFideId "4122046"]
[WhiteElo "2055"]
[BlackElo "2269"]
[Result "0-1"]
[Round "08"]
[TimeControl "180+2"]
[Date "2023.01.31"]
[WhiteClock "0:00:02"]
[BlackClock "0:00:05"]

1. e4 {[%clk 0:03:00]}  c5 {[%clk 0:02:59]} 2. c3 {[%clk 0:03:00]}  d5 {[%clk 0:02:59]} 3. e5 {[%clk 0:02:59]}  Bf5 {[%clk 0:02:55]} 4. d4 {[%clk 0:02:59]}  e6 {[%clk 0:02:54]} 5. Bd3 {[%clk 0:02:59]}  Bxd3 {[%clk 0:02:53]} 6. Qxd3 {[%clk 0:02:59]}  Nc6 {[%clk 0:02:53]} 7. Ne2 {[%clk 0:02:59]}  Qb6 {[%clk 0:02:52]} 8. O-O {[%clk 0:02:59]}  Rc8 {[%clk 0:02:27]} 9. a3 {[%clk 0:02:50]}  c4 {[%clk 0:02:25]} 10. Qh3 {[%clk 0:02:50]}  Kd7 {[%clk 0:02:03]} 11. Nf4 {[%clk 0:02:49]}  Kc7 {[%clk 0:02:01]} 12. Nd2 {[%clk 0:02:43]}  Kb8 {[%clk 0:02:00]} 13. Nf3 {[%clk 0:02:41]}  Nge7 {[%clk 0:01:54]} 14. Ng5 {[%clk 0:02:39]}  Nd8 {[%clk 0:01:52]} 15. Rb1 {[%clk 0:02:29]}  h6 {[%clk 0:01:47]} 16. Nf3 {[%clk 0:02:28]}  Rg8 {[%clk 0:01:31]} 17. Nd2 {[%clk 0:02:07]}  Qc7 {[%clk 0:01:10]} 18. b3 {[%clk 0:01:57]}  cxb3 {[%clk 0:01:09]} 19. Rxb3 {[%clk 0:01:57]}  Ka8 {[%clk 0:01:00]} 20. Bb2 {[%clk 0:01:55]}  Nec6 {[%clk 0:00:58]} 21. Rc1 {[%clk 0:01:27]}  Na5 {[%clk 0:00:57]} 22. Rb5 {[%clk 0:01:25]}  Nc4 {[%clk 0:00:53]} 23. Nxc4 {[%clk 0:01:14]}  Qxc4 {[%clk 0:00:52]} 24. Rb4 {[%clk 0:00:56]}  Bxb4 {[%clk 0:00:50]} 25. axb4 {[%clk 0:00:52]}  Qb3 {[%clk 0:00:47]} 26. Ba1 {[%clk 0:00:46]}  Nc6 {[%clk 0:00:32]} 27. Qd3 {[%clk 0:00:37]}  Nxb4 {[%clk 0:00:27]} 28. Qf1 {[%clk 0:00:19]}  Na2 {[%clk 0:00:24]} 29. Rb1 {[%clk 0:00:17]}  Qc4 {[%clk 0:00:25]} 30. Qe1 {[%clk 0:00:11]}  Nxc3 {[%clk 0:00:22]} 31. Rc1 {[%clk 0:00:10]}  Ne2+ {[%clk 0:00:14]} 32. Nxe2 {[%clk 0:00:10]}  Qxe2 {[%clk 0:00:14]} 33. Rxc8+ {[%clk 0:00:08]}  Rxc8 {[%clk 0:00:13]} 34. Qxe2 {[%clk 0:00:06]}  Rc1+ {[%clk 0:00:13]} 35. Qf1 {[%clk 0:00:07]}  Rxf1+ {[%clk 0:00:14]} 36. Kxf1 {[%clk 0:00:07]}  a5 {[%clk 0:00:14]} 37. Ke2 {[%clk 0:00:07]}  b5 {[%clk 0:00:14]} 38. Kd3 {[%clk 0:00:08]}  Kb7 {[%clk 0:00:14]} 39. Kc3 {[%clk 0:00:08]}  Kc6 {[%clk 0:00:14]} 40. Bb2 {[%clk 0:00:08]}  g6 {[%clk 0:00:11]} 41. f4 {[%clk 0:00:05]}  Kb6 {[%clk 0:00:10]} 42. Ba3 {[%clk 0:00:03]}  b4+ {[%clk 0:00:10]} 43. Bxb4 {[%clk 0:00:03]}  axb4+ {[%clk 0:00:11]} 44. Kxb4 {[%clk 0:00:04]}  Kc6 {[%clk 0:00:07]} 45. Ka5 {[%clk 0:00:03]}  Kd7 {[%clk 0:00:08]} 46. Kb6 {[%clk 0:00:02]}  Ke7 {[%clk 0:00:08]} 47. Kc6 {[%clk 0:00:02]}  f5 {[%clk 0:00:06]} 48. Kc7 {[%clk 0:00:01]}  g5 {[%clk 0:00:06]} 49. g3 {[%clk 0:00:02]}  g4 {[%clk 0:00:05]} 0-1


[Site "https://www.chess.com"]

[Event "Titled Tuesday Blitz January 31 Early 2023"]
[White "Matt, Fabian"]
[Black "Shuvalov, Evgenij"]
[WhiteFideId "1623303"]
[BlackFideId "4187237"]
[WhiteElo "2308"]
[BlackElo "2038"]
[Result "1-0"]
[Round "08"]
[TimeControl "180+2"]
[Date "2023.01.31"]
[WhiteClock "0:01:17"]
[BlackClock "0:00:27"]

1. d4 {[%clk 0:03:00]}  Nf6 {[%clk 0:02:57]} 2. c4 {[%clk 0:03:00]}  g6 {[%clk 0:02:56]} 3. Nf3 {[%clk 0:03:00]}  Bg7 {[%clk 0:02:55]} 4. Nc3 {[%clk 0:03:00]}  d5 {[%clk 0:02:55]} 5. cxd5 {[%clk 0:02:58]}  Nxd5 {[%clk 0:02:55]} 6. Bd2 {[%clk 0:02:59]}  c5 {[%clk 0:02:53]} 7. Nxd5 {[%clk 0:02:46]}  Qxd5 {[%clk 0:02:51]} 8. Qc2 {[%clk 0:02:44]}  Nc6 {[%clk 0:02:47]} 9. e4 {[%clk 0:02:40]}  Nxd4 {[%clk 0:02:41]} 10. Nxd4 {[%clk 0:02:26]}  Qxd4 {[%clk 0:02:41]} 11. Bc3 {[%clk 0:02:24]}  O-O {[%clk 0:02:36]} 12. Bxd4 {[%clk 0:02:22]}  Bxd4 {[%clk 0:02:37]} 13. Bc4 {[%clk 0:02:19]}  e6 {[%clk 0:02:31]} 14. O-O {[%clk 0:02:18]}  Bd7 {[%clk 0:02:30]} 15. Rad1 {[%clk 0:02:15]}  b5 {[%clk 0:02:25]} 16. Be2 {[%clk 0:02:15]}  Rfd8 {[%clk 0:02:24]} 17. b4 {[%clk 0:02:13]}  Rac8 {[%clk 0:02:22]} 18. bxc5 {[%clk 0:02:07]}  Rxc5 {[%clk 0:02:21]} 19. Qb3 {[%clk 0:02:07]}  e5 {[%clk 0:02:20]} 20. Rxd4 {[%clk 0:02:02]}  exd4 {[%clk 0:02:16]} 21. Rd1 {[%clk 0:02:02]}  Be6 {[%clk 0:02:16]} 22. Qb4 {[%clk 0:02:03]}  Rc2 {[%clk 0:02:14]} 23. Bxb5 {[%clk 0:01:56]}  Rxa2 {[%clk 0:02:11]} 24. Bc4 {[%clk 0:01:49]}  Bxc4 {[%clk 0:01:04]} 25. Qxc4 {[%clk 0:01:50]}  Rb2 {[%clk 0:01:02]} 26. g3 {[%clk 0:01:45]}  h5 {[%clk 0:00:54]} 27. Rxd4 {[%clk 0:01:44]}  Rxd4 {[%clk 0:00:54]} 28. Qxd4 {[%clk 0:01:45]}  Rb6 {[%clk 0:00:53]} 29. Kg2 {[%clk 0:01:40]}  Kh7 {[%clk 0:00:49]} 30. Qd7 {[%clk 0:01:38]}  Kg7 {[%clk 0:00:48]} 31. Qxa7 {[%clk 0:01:38]}  Re6 {[%clk 0:00:48]} 32. Qd4+ {[%clk 0:01:37]}  Kh7 {[%clk 0:00:48]} 33. f4 {[%clk 0:01:38]}  Ra6 {[%clk 0:00:42]} 34. Qc4 {[%clk 0:01:35]}  Rf6 {[%clk 0:00:40]} 35. e5 {[%clk 0:01:29]}  Re6 {[%clk 0:00:39]} 36. Kf3 {[%clk 0:01:26]}  Kg7 {[%clk 0:00:39]} 37. h3 {[%clk 0:01:26]}  Rb6 {[%clk 0:00:36]} 38. g4 {[%clk 0:01:24]}  hxg4+ {[%clk 0:00:37]} 39. hxg4 {[%clk 0:01:25]}  Re6 {[%clk 0:00:36]} 40. Qd5 {[%clk 0:01:21]}  Ra6 {[%clk 0:00:31]} 41. f5 {[%clk 0:01:21]}  g5 {[%clk 0:00:29]} 42. f6+ {[%clk 0:01:17]}  Kg6 {[%clk 0:00:27]} 43. Qd3+ {[%clk 0:01:17]} 1-0


[Site "https://www.chess.com"]

[Event "Titled Tuesday Blitz January 31 Early 2023"]
[White "Pein, Jonathan"]
[Black "Buscar, Michael"]
[WhiteFideId "417092"]
[BlackFideId "2603616"]
[WhiteElo "2265"]
[BlackElo "2041"]
[Result "0-1"]
[Round "08"]
[TimeControl "180+2"]
[Date "2023.01.31"]
[WhiteClock "0:00:02"]
[BlackClock "0:00:11"]

1. e4 {[%clk 0:03:00]}  c5 {[%clk 0:02:31]} 2. g3 {[%clk 0:03:00]}  e5 {[%clk 0:02:30]} 3. Bg2 {[%clk 0:02:57]}  Nc6 {[%clk 0:02:30]} 4. Ne2 {[%clk 0:02:58]}  d6 {[%clk 0:02:31]} 5. O-O {[%clk 0:02:59]}  Bg4 {[%clk 0:02:30]} 6. h3 {[%clk 0:02:58]}  Bxe2 {[%clk 0:02:30]} 7. Qxe2 {[%clk 0:02:59]}  Be7 {[%clk 0:02:29]} 8. c3 {[%clk 0:03:00]}  Nf6 {[%clk 0:02:28]} 9. d3 {[%clk 0:03:00]}  O-O {[%clk 0:02:29]} 10. Be3 {[%clk 0:03:00]}  d5 {[%clk 0:02:24]} 11. a4 {[%clk 0:02:54]}  d4 {[%clk 0:02:24]} 12. Bd2 {[%clk 0:02:53]}  Qd7 {[%clk 0:02:22]} 13. Na3 {[%clk 0:02:52]}  Ne8 {[%clk 0:02:21]} 14. f4 {[%clk 0:02:52]}  f6 {[%clk 0:02:21]} 15. h4 {[%clk 0:02:44]}  Nd6 {[%clk 0:02:18]} 16. Kh2 {[%clk 0:02:41]}  b6 {[%clk 0:02:04]} 17. Bh3 {[%clk 0:02:36]}  Qc7 {[%clk 0:01:55]} 18. Be6+ {[%clk 0:02:36]}  Kh8 {[%clk 0:01:56]} 19. Nb5 {[%clk 0:02:28]}  Nxb5 {[%clk 0:01:47]} 20. axb5 {[%clk 0:02:29]}  Nd8 {[%clk 0:01:47]} 21. Bd5 {[%clk 0:02:28]}  Nb7 {[%clk 0:01:30]} 22. c4 {[%clk 0:02:19]}  Rfd8 {[%clk 0:01:09]} 23. fxe5 {[%clk 0:02:15]}  fxe5 {[%clk 0:01:08]} 24. Rf7 {[%clk 0:02:15]}  Nd6 {[%clk 0:00:56]} 25. Rf2 {[%clk 0:01:57]}  Rab8 {[%clk 0:00:56]} 26. Qh5 {[%clk 0:01:52]}  Ne8 {[%clk 0:00:50]} 27. Qf7 {[%clk 0:01:32]}  Nf6 {[%clk 0:00:43]} 28. Rxf6 {[%clk 0:01:18]}  gxf6 {[%clk 0:00:42]} 29. Bh6 {[%clk 0:01:09]}  Rg8 {[%clk 0:00:41]} 30. Be6 {[%clk 0:01:09]}  Rg6 {[%clk 0:00:37]} 31. Bf5 {[%clk 0:00:31]}  Rxh6 {[%clk 0:00:35]} 32. Kh3 {[%clk 0:00:26]}  Rg8 {[%clk 0:00:22]} 33. g4 {[%clk 0:00:22]}  Bd8 {[%clk 0:00:18]} 34. Qxc7 {[%clk 0:00:19]}  Bxc7 {[%clk 0:00:18]} 35. h5 {[%clk 0:00:09]}  Bb8 {[%clk 0:00:16]} 36. Ra6 {[%clk 0:00:09]}  Rg5 {[%clk 0:00:15]} 37. Be6 {[%clk 0:00:03]}  f5 {[%clk 0:00:13]} 38. Bxf5 {[%clk 0:00:02]}  Rf6 {[%clk 0:00:11]} 0-1


[Site "https://www.chess.com"]

[Event "Titled Tuesday Blitz January 31 Early 2023"]
[White "Mkrtchian, Lilit"]
[Black "Mrudul Dehankar"]
[WhiteFideId "13300601"]
[BlackFideId "25096990"]
[WhiteElo "2389"]
[BlackElo "2030"]
[Result "0-1"]
[Round "08"]
[TimeControl "180+2"]
[Date "2023.01.31"]
[WhiteClock "0:00:02"]
[BlackClock "0:00:05"]

1. Nf3 {[%clk 0:03:00]}  Nf6 {[%clk 0:02:56]} 2. g3 {[%clk 0:03:00]}  b5 {[%clk 0:02:53]} 3. Bg2 {[%clk 0:02:59]}  Bb7 {[%clk 0:02:53]} 4. O-O {[%clk 0:02:52]}  e6 {[%clk 0:02:52]} 5. d3 {[%clk 0:02:47]}  Be7 {[%clk 0:02:50]} 6. c4 {[%clk 0:02:40]}  a6 {[%clk 0:02:46]} 7. Nc3 {[%clk 0:02:39]}  b4 {[%clk 0:02:46]} 8. Na4 {[%clk 0:02:38]}  O-O {[%clk 0:02:44]} 9. e4 {[%clk 0:02:34]}  d6 {[%clk 0:02:36]} 10. Re1 {[%clk 0:02:23]}  Nbd7 {[%clk 0:02:35]} 11. b3 {[%clk 0:02:08]}  c5 {[%clk 0:01:45]} 12. Bb2 {[%clk 0:02:02]}  Qc7 {[%clk 0:01:33]} 13. e5 {[%clk 0:02:00]}  dxe5 {[%clk 0:01:27]} 14. Nxe5 {[%clk 0:01:59]}  Bxg2 {[%clk 0:01:26]} 15. Kxg2 {[%clk 0:02:00]}  Rad8 {[%clk 0:01:23]} 16. Qf3 {[%clk 0:01:51]}  Bd6 {[%clk 0:00:10]} 17. Nxd7 {[%clk 0:01:25]}  Nxd7 {[%clk 0:00:10]} 18. Rad1 {[%clk 0:01:18]}  e5 {[%clk 0:00:07]} 19. h4 {[%clk 0:00:55]}  f5 {[%clk 0:00:06]} 20. h5 {[%clk 0:00:52]}  Rf7 {[%clk 0:00:06]} 21. h6 {[%clk 0:00:50]}  g6 {[%clk 0:00:05]} 22. Qd5 {[%clk 0:00:47]}  Rf8 {[%clk 0:00:05]} 23. Re2 {[%clk 0:00:33]}  Nf6 {[%clk 0:00:05]} 24. Qf3 {[%clk 0:00:26]}  e4 {[%clk 0:00:04]} 25. dxe4 {[%clk 0:00:23]}  fxe4 {[%clk 0:00:04]} 26. Qe3 {[%clk 0:00:18]}  Ng4 {[%clk 0:00:05]} 27. Qxe4 {[%clk 0:00:15]}  Nxf2 {[%clk 0:00:05]} 28. Qd5 {[%clk 0:00:11]}  Nxd1 {[%clk 0:00:04]} 29. Qxd1 {[%clk 0:00:10]}  Bxg3 {[%clk 0:00:04]} 30. Qd5 {[%clk 0:00:09]}  Bh4 {[%clk 0:00:03]} 31. Be5 {[%clk 0:00:08]}  Qe7 {[%clk 0:00:02]} 32. Nxc5 {[%clk 0:00:05]}  Qg5+ {[%clk 0:00:02]} 33. Kh3 {[%clk 0:00:04]}  Bf2 {[%clk 0:00:02]} 34. Bh2 {[%clk 0:00:03]}  Qh5+ {[%clk 0:00:02]} 35. Kg2 {[%clk 0:00:02]}  Qxd5+ {[%clk 0:00:02]} 36. cxd5 {[%clk 0:00:02]}  Bxc5 {[%clk 0:00:02]} 37. d6 {[%clk 0:00:01]}  Rd7 {[%clk 0:00:03]} 38. Rc2 {[%clk 0:00:01]}  Bxd6 {[%clk 0:00:03]} 39. Rd2 {[%clk 0:00:02]}  Rfd8 {[%clk 0:00:04]} 40. Bg1 {[%clk 0:00:01]}  Be5 {[%clk 0:00:04]} 41. Re2 {[%clk 0:00:02]}  Bc3 {[%clk 0:00:04]} 42. Kf3 {[%clk 0:00:02]}  Rd2 {[%clk 0:00:04]} 43. Re7 {[%clk 0:00:01]}  Rf8+ {[%clk 0:00:05]} 44. Kg4 {[%clk 0:00:01]}  Rg2+ {[%clk 0:00:04]} 45. Kh3 {[%clk 0:00:01]}  Rxg1 {[%clk 0:00:05]} 46. Kh2 {[%clk 0:00:02]}  Rg5 {[%clk 0:00:04]} 47. Kh3 {[%clk 0:00:02]}  Be5 {[%clk 0:00:05]} 48. Rxe5 {[%clk 0:00:01]}  Rxe5 {[%clk 0:00:05]} 49. Kg2 {[%clk 0:00:02]}  Rg5+ {[%clk 0:00:04]} 50. Kh1 {[%clk 0:00:01]}  Rf4 {[%clk 0:00:05]} 51. Kh2 {[%clk 0:00:02]}  Rh4# {[%clk 0:00:05]} 0-1


[Site "https://www.chess.com"]

[Event "Titled Tuesday Blitz January 31 Early 2023"]
[White "Orujov, Elshad"]
[Black "Tymrakiewicz, Rafal"]
[WhiteFideId "13403540"]
[BlackFideId "1108832"]
[WhiteElo "2304"]
[BlackElo "2144"]
[Result "0-1"]
[Round "08"]
[TimeControl "180+2"]
[Date "2023.01.31"]
[WhiteClock "0:00:10"]
[BlackClock "0:00:11"]

1. e4 {[%clk 0:03:00]}  Nf6 {[%clk 0:02:59]} 2. e5 {[%clk 0:03:00]}  Nd5 {[%clk 0:02:59]} 3. d4 {[%clk 0:03:01]}  d6 {[%clk 0:03:00]} 4. Nf3 {[%clk 0:03:01]}  g6 {[%clk 0:02:59]} 5. Bc4 {[%clk 0:03:00]}  Nb6 {[%clk 0:02:59]} 6. Bb3 {[%clk 0:02:59]}  d5 {[%clk 0:03:00]} 7. O-O {[%clk 0:02:58]}  Nc6 {[%clk 0:02:58]} 8. a4 {[%clk 0:02:58]}  Bg4 {[%clk 0:02:52]} 9. c3 {[%clk 0:02:54]}  Bg7 {[%clk 0:02:52]} 10. a5 {[%clk 0:02:52]}  Nc4 {[%clk 0:02:53]} 11. a6 {[%clk 0:02:44]}  b5 {[%clk 0:02:53]} 12. Na3 {[%clk 0:02:39]}  Nxa3 {[%clk 0:02:42]} 13. Rxa3 {[%clk 0:02:40]}  O-O {[%clk 0:02:40]} 14. h3 {[%clk 0:02:38]}  Bxf3 {[%clk 0:02:39]} 15. Qxf3 {[%clk 0:02:38]}  e6 {[%clk 0:02:40]} 16. Ra1 {[%clk 0:02:30]}  Rc8 {[%clk 0:02:20]} 17. g3 {[%clk 0:02:27]}  Nb8 {[%clk 0:02:20]} 18. h4 {[%clk 0:02:19]}  c5 {[%clk 0:02:17]} 19. Bg5 {[%clk 0:02:18]}  Qb6 {[%clk 0:02:00]} 20. Be7 {[%clk 0:02:05]}  cxd4 {[%clk 0:01:49]} 21. Bxf8 {[%clk 0:02:04]}  Rxf8 {[%clk 0:01:40]} 22. cxd4 {[%clk 0:01:46]}  Qxd4 {[%clk 0:01:39]} 23. Rac1 {[%clk 0:01:46]}  Nxa6 {[%clk 0:01:35]} 24. Rc6 {[%clk 0:01:34]}  Nb4 {[%clk 0:01:31]} 25. Rc7 {[%clk 0:01:29]}  Bxe5 {[%clk 0:01:12]} 26. Rb7 {[%clk 0:01:21]}  a6 {[%clk 0:01:02]} 27. h5 {[%clk 0:01:04]}  Qd3 {[%clk 0:00:57]} 28. Bd1 {[%clk 0:00:31]}  Qxf3 {[%clk 0:00:54]} 29. Bxf3 {[%clk 0:00:32]}  Bxb2 {[%clk 0:00:41]} 30. Kg2 {[%clk 0:00:28]}  Nd3 {[%clk 0:00:26]} 31. hxg6 {[%clk 0:00:26]}  hxg6 {[%clk 0:00:25]} 32. Ra7 {[%clk 0:00:21]}  Nc5 {[%clk 0:00:22]} 33. Rb1 {[%clk 0:00:19]}  Bd4 {[%clk 0:00:17]} 34. Rd1 {[%clk 0:00:16]}  Bc3 {[%clk 0:00:14]} 35. Rc7 {[%clk 0:00:12]}  Na4 {[%clk 0:00:14]} 36. Rc1 {[%clk 0:00:09]}  b4 {[%clk 0:00:13]} 37. Bd1 {[%clk 0:00:08]}  Nb2 {[%clk 0:00:13]} 38. Bb3 {[%clk 0:00:05]}  Nd3 {[%clk 0:00:13]} 39. Rd1 {[%clk 0:00:05]}  Ne5 {[%clk 0:00:12]} 40. Ra7 {[%clk 0:00:04]}  d4 {[%clk 0:00:12]} 41. Rxa6 {[%clk 0:00:04]}  d3 {[%clk 0:00:12]} 42. Ra5 {[%clk 0:00:04]}  Nc6 {[%clk 0:00:10]} 43. Rc5 {[%clk 0:00:03]}  Nd4 {[%clk 0:00:11]} 44. Rxd3 {[%clk 0:00:02]}  Nxb3 {[%clk 0:00:11]} 45. Rb5 {[%clk 0:00:03]}  Rc8 {[%clk 0:00:08]} 46. Rd7 {[%clk 0:00:02]}  Nd2 {[%clk 0:00:06]} 47. Rbb7 {[%clk 0:00:02]}  Rf8 {[%clk 0:00:06]} 48. Rdc7 {[%clk 0:00:02]}  Ne4 {[%clk 0:00:06]} 49. Rd7 {[%clk 0:00:02]}  Nc5 {[%clk 0:00:06]} 50. Rdc7 {[%clk 0:00:02]}  Nxb7 {[%clk 0:00:06]} 51. Rxb7 {[%clk 0:00:03]}  Bd2 {[%clk 0:00:06]} 52. Rc7 {[%clk 0:00:03]}  b3 {[%clk 0:00:06]} 53. Rb7 {[%clk 0:00:04]}  Bc3 {[%clk 0:00:05]} 54. Rxb3 {[%clk 0:00:04]}  Bf6 {[%clk 0:00:05]} 55. Rf3 {[%clk 0:00:04]}  Kg7 {[%clk 0:00:06]} 56. Rd3 {[%clk 0:00:05]}  Rc8 {[%clk 0:00:07]} 57. Rb3 {[%clk 0:00:05]}  Rc2 {[%clk 0:00:07]} 58. Rb4 {[%clk 0:00:05]}  Be5 {[%clk 0:00:07]} 59. Re4 {[%clk 0:00:05]}  Bd6 {[%clk 0:00:07]} 60. Re3 {[%clk 0:00:04]}  Bc5 {[%clk 0:00:07]} 61. Rf3 {[%clk 0:00:05]}  Rxf2+ {[%clk 0:00:08]} 62. Rxf2 {[%clk 0:00:06]}  Bxf2 {[%clk 0:00:08]} 63. Kxf2 {[%clk 0:00:07]}  g5 {[%clk 0:00:09]} 64. Kf3 {[%clk 0:00:07]}  f5 {[%clk 0:00:09]} 65. Ke3 {[%clk 0:00:08]}  Kf6 {[%clk 0:00:10]} 66. Kd4 {[%clk 0:00:09]}  g4 {[%clk 0:00:09]} 67. Ke3 {[%clk 0:00:09]}  Ke5 {[%clk 0:00:10]} 68. Kd3 {[%clk 0:00:09]}  Kd5 {[%clk 0:00:10]} 69. Ke3 {[%clk 0:00:10]}  e5 {[%clk 0:00:11]} 70. Kd3 {[%clk 0:00:10]}  Kc5 {[%clk 0:00:11]} 0-1


[Site "https://www.chess.com"]

[Event "Titled Tuesday Blitz January 31 Early 2023"]
[White "Gatterer, Florian"]
[Black "SicilianPanzer"]
[WhiteFideId "811688"]
[WhiteElo "2170"]
[BlackElo "2195"]
[Result "1-0"]
[Round "08"]
[TimeControl "180+2"]
[Date "2023.01.31"]
[WhiteClock "0:01:27"]
[BlackClock "0:00:02"]

1. b3 {[%clk 0:03:00]}  Nf6 {[%clk 0:02:51]} 2. Bb2 {[%clk 0:03:00]}  d6 {[%clk 0:02:50]} 3. c4 {[%clk 0:02:52]}  Nbd7 {[%clk 0:02:49]} 4. g3 {[%clk 0:02:51]}  g6 {[%clk 0:02:48]} 5. Bg2 {[%clk 0:02:52]}  Bg7 {[%clk 0:02:47]} 6. Nf3 {[%clk 0:02:50]}  O-O {[%clk 0:02:47]} 7. d4 {[%clk 0:02:51]}  c5 {[%clk 0:02:44]} 8. O-O {[%clk 0:02:49]}  cxd4 {[%clk 0:02:41]} 9. Nxd4 {[%clk 0:02:49]}  a6 {[%clk 0:02:28]} 10. Nc3 {[%clk 0:02:48]}  Rb8 {[%clk 0:02:25]} 11. h3 {[%clk 0:02:47]}  Nc5 {[%clk 0:02:15]} 12. e4 {[%clk 0:02:38]}  Bd7 {[%clk 0:02:12]} 13. Re1 {[%clk 0:02:37]}  b5 {[%clk 0:01:46]} 14. cxb5 {[%clk 0:02:35]}  axb5 {[%clk 0:01:45]} 15. b4 {[%clk 0:02:34]}  Ne6 {[%clk 0:01:29]} 16. Nf3 {[%clk 0:02:34]}  Bc6 {[%clk 0:01:12]} 17. Qd2 {[%clk 0:02:34]}  Qb6 {[%clk 0:01:10]} 18. a3 {[%clk 0:02:28]}  Rbc8 {[%clk 0:01:07]} 19. Nd5 {[%clk 0:02:23]}  Nxe4 {[%clk 0:00:32]} 20. Nxe7+ {[%clk 0:02:01]}  Kh8 {[%clk 0:00:31]} 21. Bxg7+ {[%clk 0:01:58]}  Kxg7 {[%clk 0:00:26]} 22. Qb2+ {[%clk 0:01:58]}  f6 {[%clk 0:00:15]} 23. Nxc8 {[%clk 0:01:44]}  Rxc8 {[%clk 0:00:15]} 24. Rad1 {[%clk 0:01:43]}  d5 {[%clk 0:00:07]} 25. Nd4 {[%clk 0:01:43]}  Nxd4 {[%clk 0:00:04]} 26. Qxd4 {[%clk 0:01:44]}  Qa6 {[%clk 0:00:03]} 27. Bxe4 {[%clk 0:01:41]}  dxe4 {[%clk 0:00:03]} 28. Re3 {[%clk 0:01:41]}  Bb7 {[%clk 0:00:01]} 29. Qd7+ {[%clk 0:01:35]}  Kg8 {[%clk 0:00:02]} 30. Rd6 {[%clk 0:01:34]}  Qa4 {[%clk 0:00:02]} 31. Qxb7 {[%clk 0:01:27]} 1-0


[Site "https://www.chess.com"]